bitfinex-derivatives/quotes_SOLF0:USTF0_20260312
["timestamp","ask_amount","ask_price","bid_price","bid_amount"]
[1773329413054,20.84428907,86.349,86.278,20.83315824]
[1773329413251,20.84428907,86.367,86.278,20.83315824]
[1773329413451,20.84428907,86.367,86.306,10.427]
[1773329413746,20.84428907,86.367,86.301,20.83315824]
[1773329414053,20.84428907,86.365,86.301,20.83315824]
[1773329414446,20.84428907,86.365,86.322,10.425]
[1773329415750,20.84428907,86.365,86.259,34.88]
[1773329415751,20.84428907,86.384,86.33,31.25715824]
[1773329415947,20.84428907,86.402,86.33,20.83315824]
[1773329416147,20.94150308,86.467,86.315,40.12]
[1773329416148,20.84428907,86.389,86.336,10.423]
[1773329416354,20.84428907,86.389,86.316,20.83315824]
[1773329416752,20.84428907,86.385,86.327,10.424]
[1773329417063,20.84428907,86.385,86.316,20.83315824]
[1773329417250,20.84428907,86.385,86.344,10.422]
[1773329418154,20.84428907,86.409,86.353,10.421]
[1773329418352,20.84428907,86.429,86.343,20.83315824]
[1773329418552,20.84428907,86.429,86.345,20.83315824]
[1773329418756,10.41,86.443,86.377,20.83315824]
[1773329418956,20.84428907,86.448,86.377,20.83315824]
[1773329419356,20.84428907,86.448,86.386,20.83315824]
[1773329419860,20.84428907,86.439,86.377,10.418]
[1773329420657,21.13435192,86.457,86.366,20.85521412]
[1773329421353,21.13435192,86.457,86.367,20.85521412]
[1773329421549,21.13435192,86.457,86.389,10.417]
[1773329422354,21.13435192,86.457,86.4,20.85521412]
[1773329423457,21.13435192,86.457,86.402,10.415]
[1773329423657,21.13435192,86.478,86.403,20.85521412]
[1773329423861,21.13435192,86.474,86.403,20.85521412]
[1773329424355,21.13435192,86.459,86.392,10.417]
[1773329424955,21.13435192,86.459,86.382,20.85521412]
[1773329425158,21.13435192,86.445,86.365,20.85521412]
[1773329425752,21.13435192,86.445,86.389,20.85521412]
[1773329426957,21.13435192,86.445,86.371,20.85521412]
[1773329427258,21.13435192,86.445,86.383,10.418]
[1773329427955,21.13435192,86.441,86.372,10.419]
[1773329428156,21.13435192,86.439,86.371,20.85521412]
[1773329428360,21.13435192,86.419,86.351,20.85521412]
[1773329428751,9.18285675,86.42,86.371,10.419]
[1773329428955,31.54535192,86.436,86.371,10.419]
[1773329429156,21.13435192,86.435,86.371,31.27421412]
[1773329429357,21.13435192,86.435,86.372,20.85521412]
[1773329429552,21.13435192,86.459,86.377,20.85521412]
[1773329430260,21.13435192,86.448,86.377,20.85521412]
[1773329431260,21.13435192,86.448,86.39,10.417]
[1773329431558,21.13435192,86.448,86.377,20.85521412]
[1773329432153,10.41,86.445,86.385,20.85521412]
[1773329432351,21.13435192,86.465,86.385,20.85521412]
[1773329432752,21.13435192,86.453,86.395,20.85521412]
[1773329433150,9.18285675,86.47,86.395,20.85521412]
[1773329433356,21.13435192,86.469,86.408,20.85521412]
[1773329434552,21.13435192,86.469,86.41,10.414]
[1773329434553,10.408,86.461,86.41,10.414]
[1773329434954,10.408,86.461,86.408,20.85521412]
[1773329435561,10.409,86.455,86.408,20.85521412]
[1773329435755,10.409,86.455,86.357,20.842]
[1773329435756,21.13435192,86.449,86.374,20.85521412]
[1773329435957,9.18285675,86.45,86.358,40.08]
[1773329435958,21.13435192,86.429,86.358,40.08]
[1773329436159,21.13435192,86.429,86.365,10.42]
[1773329436468,21.13435192,86.429,86.357,20.85521412]
[1773329436657,21.13435192,86.429,86.368,10.419]
[1773329436658,10.414,86.416,86.368,10.419]
[1773329436857,21.13435192,86.429,86.368,10.419]
[1773329437154,21.13435192,86.429,86.368,20.85521412]
[1773329437356,10.412,86.427,86.368,20.85521412]
[1773329437552,21.13435192,86.429,86.368,20.85521412]
[1773329437758,9.18274317,86.44,86.368,20.85521412]
[1773329438463,21.13435192,86.437,86.368,20.85521412]
[1773329438869,10.413,86.419,86.369,10.419]
[1773329439969,10.412,86.428,86.369,10.419]
[1773329440175,21.13435192,86.437,86.377,20.85521412]
[1773329440876,21.13435192,86.437,86.38,10.418]
[1773329441774,21.13435192,86.437,86.372,10.419]
[1773329441975,21.13435192,86.419,86.359,20.85521412]
[1773329442375,21.13435192,86.437,86.359,20.85521412]
[1773329442567,40.08,86.452,86.359,20.85521412]
[1773329442568,21.13435192,86.419,86.359,20.85521412]
[1773329442770,21.13435192,86.419,86.342,20.85521412]
[1773329442971,21.13435192,86.399,86.346,10.422]
[1773329443170,21.13435192,86.399,86.342,20.85521412]
[1773329443376,10.416,86.397,86.351,10.421]
[1773329443576,10.416,86.397,86.342,20.85521412]
[1773329444371,10.417,86.388,86.325,20.52239821]
[1773329444574,21.13435192,86.399,86.325,20.52239821]
[1773329445078,21.13435192,86.399,86.335,10.423]
[1773329445676,19.69257342,86.379,86.308,20.52239821]
[1773329446875,19.69257342,86.397,86.311,20.52239821]
[1773329447075,19.69257342,86.397,86.307,11.37324268]
[1773329447076,19.69257342,86.415,86.331,20.52239821]
[1773329447478,19.69257342,86.415,86.33,9.18274317]
[1773329447479,19.69257342,86.415,86.359,10.42]
[1773329448186,19.69257342,86.415,86.368,10.419]
[1773329448882,19.69257342,86.432,86.354,20.52239821]
[1773329449885,19.69257342,86.432,86.373,10.419]
[1773329449886,10.413,86.423,86.373,10.419]
[1773329450081,9.18274317,86.46,86.373,20.52239821]
[1773329450386,20.28744759,86.434,86.374,10.419]
[1773329450573,9.18274317,86.43,86.374,10.419]
[1773329450981,20.28744759,86.434,86.373,20.52239821]
[1773329451978,9.18274317,86.46,86.373,20.52239821]
[1773329451979,20.28744759,86.454,86.393,10.416]
[1773329452185,20.28744759,86.454,86.373,20.52239821]
[1773329452882,10.41,86.448,86.399,10.416]
[1773329453278,20.28744759,86.454,86.389,20.98465351]
[1773329453887,9.18274317,86.45,86.389,20.98465351]
[1773329454480,10.41,86.448,86.398,10.416]
[1773329454881,9.18274317,86.45,86.399,20.98465351]
[1773329455083,20.28744759,86.454,86.407,10.415]
[1773329458389,20.28744759,86.449,86.376,20.98465351]
[1773329459790,10.411,86.443,86.394,10.416]
[1773329460188,20.28744759,86.443,86.376,20.98465351]
[1773329460684,9.18274317,86.45,86.376,20.98465351]
[1773329460881,20.28744759,86.449,86.376,20.98465351]
[1773329461281,10.411,86.442,86.383,10.418]
[1773329461587,10.411,86.442,86.376,20.98465351]
[1773329461588,20.28744759,86.449,86.376,20.98465351]
[1773329461984,20.28744759,86.449,86.405,10.415]
[1773329462182,20.28744759,86.449,86.391,20.98465351]
[1773329462785,10.411,86.441,86.391,20.98465351]
[1773329463792,20.28744759,86.467,86.395,20.98465351]
[1773329464597,20.28744759,86.467,86.412,10.414]
[1773329465390,20.28744759,86.467,86.395,20.98465351]
[1773329465391,9.18274317,86.47,86.413,20.98465351]
[1773329465588,192.28226637,86.537,86.413,20.98465351]
[1773329465589,20.28744759,86.485,86.413,20.98465351]
[1773329466492,20.28744759,86.519,86.421,20.98465351]
[1773329466696,20.28744759,86.519,86.451,20.98465351]
[1773329467092,10.402,86.511,86.463,10.408]
[1773329467397,20.28744759,86.51,86.451,20.98465351]
[1773329467893,29.47019076,86.5,86.451,20.98465351]
[1773329468800,20.28744759,86.499,86.425,20.98465351]
[1773329469011,20.28744759,86.479,86.425,20.98465351]
[1773329469209,20.28744759,86.479,86.432,10.412]
[1773329469904,20.28744759,86.475,86.408,20.98465351]
[1773329470705,29.47019076,86.46,86.408,20.98465351]
[1773329470911,20.28744759,86.459,86.408,20.98465351]
[1773329471112,20.28744759,86.476,86.408,20.98465351]
[1773329471308,10.408,86.463,86.419,10.413]
[1773329471610,10.408,86.463,86.408,20.98465351]
[1773329472412,10.409,86.456,86.41,10.414]
[1773329472605,9.18274317,86.46,86.41,10.414]
[1773329472806,9.18274317,86.46,86.408,20.98465351]
[1773329473103,9.18274317,86.46,86.408,31.39965351]
[1773329473909,9.18274317,86.46,86.416,10.414]
[1773329474605,10.409,86.458,86.407,10.415]
[1773329474806,10.409,86.458,86.407,20.98465351]
[1773329475206,20.28744759,86.459,86.407,20.98465351]
[1773329475407,10.408,86.468,86.407,20.98465351]
[1773329475612,20.28744759,86.476,86.407,20.98465351]
[1773329476013,20.28744759,86.476,86.415,20.98465351]
[1773329476214,20.28744759,86.492,86.417,20.98465351]
[1773329476512,10.404,86.493,86.448,10.41]
[1773329476719,10.404,86.493,86.442,20.98465351]
[1773329476720,30.69144759,86.493,86.442,20.98465351]
[1773329476906,20.28744759,86.493,86.418,40.08]
[1773329477108,20.28744759,86.493,86.419,20.98465351]
[1773329477911,10.405,86.486,86.432,20.98465351]
[1773329478413,20.28744759,86.493,86.435,10.411]
[1773329478918,20.28744759,86.493,86.436,20.98465351]
[1773329479213,9.18274317,86.5,86.446,31.39465351]
[1773329479414,29.47019076,86.5,86.447,20.98465351]
[1773329479808,10.404,86.497,86.447,20.98465351]
[1773329480213,10.404,86.497,86.448,10.41]
[1773329480409,10.404,86.497,86.447,20.98465351]
[1773329481221,10.404,86.497,86.447,31.39465351]
[1773329481721,20.28744759,86.5,86.447,31.39465351]
[1773329482115,20.28744759,86.5,86.455,10.409]
[1773329482421,19.6467919,86.498,86.421,19.67115595]
[1773329482618,9.18274317,86.51,86.421,19.67115595]
[1773329482820,19.6467919,86.509,86.421,19.67115595]
[1773329483123,19.6467919,86.509,86.453,10.409]
[1773329483819,19.6467919,86.509,86.418,40.08]
[1773329483820,19.6467919,86.536,86.47,19.67115595]
[1773329484115,9.18274317,86.51,86.433,19.67115595]
[1773329484320,9.18274317,86.51,86.435,19.67115595]
[1773329484517,19.6467919,86.519,86.473,10.407]
[1773329485027,20.792,86.566,86.435,11.34149314]
[1773329485028,19.6467919,86.552,86.474,19.67115595]
[1773329485423,10.399,86.537,86.474,19.67115595]
[1773329485623,19.6467919,86.539,86.474,19.67115595]
[1773329486117,9.18274317,86.54,86.44,30.00474317]
[1773329486118,19.6467919,86.528,86.441,19.67115595]
[1773329486323,19.6467919,86.528,86.445,19.67115595]
[1773329486524,19.6467919,86.528,86.489,10.405]
[1773329486713,19.58174317,86.54,86.489,10.405]
[1773329486919,39.22853507,86.54,86.489,30.07615595]
[1773329487121,19.6467919,86.54,86.496,10.404]
[1773329487313,10.398,86.548,86.496,10.404]
[1773329487517,19.6467919,86.556,86.496,10.404]
[1773329487720,10.398,86.549,86.504,10.403]
[1773329488019,40.06,86.568,86.489,19.67115595]
[1773329488723,19.6467919,86.567,86.509,19.67115595]
[1773329489622,30.0427919,86.567,86.516,10.402]
[1773329490917,19.6467919,86.567,86.516,10.402]
[1773329491125,14.79512047,86.585,86.526,19.67115595]
[1773329491521,14.79512047,86.585,86.474,161.888]
[1773329491522,19.6467919,86.579,86.505,19.67115595]
[1773329491719,19.6467919,86.559,86.487,19.67115595]
[1773329491924,19.6467919,86.539,86.47,19.67115595]
[1773329492126,19.6467919,86.555,86.471,19.67115595]
[1773329492618,19.6467919,86.555,86.511,10.402]
[1773329492817,9.18274317,86.57,86.511,10.402]
[1773329493021,9.18274317,86.57,86.5,19.67115595]
[1773329493224,19.6467919,86.569,86.5,19.67115595]
[1773329493527,19.6467919,86.568,86.512,10.402]
[1773329494522,19.6467919,86.562,86.502,10.403]
[1773329494721,19.6467919,86.562,86.502,30.07415595]
[1773329495525,19.6467919,86.549,86.493,10.404]
[1773329495729,19.6467919,86.549,86.467,19.67115595]
[1773329495925,19.6467919,86.529,86.45,19.67115595]
[1773329496122,19.6467919,86.519,86.464,10.408]
[1773329496324,19.6467919,86.509,86.45,19.67115595]
[1773329496521,19.6467919,86.499,86.426,19.67115595]
[1773329497421,19.6467919,86.499,86.454,10.409]
[1773329497726,19.6467919,86.51,86.454,10.409]
[1773329498430,19.5704329,86.5,86.445,10.41]
[1773329498630,19.5704329,86.5,86.443,19.67115595]
[1773329498830,9.1664329,86.5,86.443,19.67115595]
[1773329499026,19.6467919,86.499,86.452,10.409]
[1773329499525,19.6467919,86.499,86.443,19.67115595]
[1773329499730,19.6467919,86.499,86.382,20.836]
[1773329499731,19.6467919,86.499,86.426,19.67115595]
[1773329500230,19.6467919,86.499,86.437,30.08215595]
[1773329500631,19.6467919,86.499,86.414,19.67115595]
[1773329501526,19.6467919,86.489,86.417,10.414]
[1773329501731,19.6467919,86.489,86.417,30.08515595]
[1773329501928,19.6467919,86.489,86.417,19.67115595]
[1773329502128,19.6467919,86.487,86.425,10.413]
[1773329502730,19.6467919,86.487,86.433,10.412]
[1773329502925,19.6467919,86.487,86.417,19.67115595]
[1773329503132,9.1664329,86.48,86.417,19.67115595]
[1773329503328,9.1664329,86.48,86.413,40.04]
[1773329503329,10.406,86.477,86.418,30.08415595]
[1773329503633,9.1664329,86.48,86.419,19.67115595]
[1773329504037,10.406,86.479,86.42,10.413]
[1773329504537,9.1664329,86.48,86.421,20.50000649]
[1773329505128,20.56294597,86.479,86.421,20.50000649]
[1773329505733,20.56294597,86.479,86.404,20.50000649]
[1773329506534,20.56294597,86.479,86.406,20.50000649]
[1773329506835,20.56294597,86.479,86.415,20.50000649]
[1773329506836,10.406,86.478,86.415,20.50000649]
[1773329507035,20.56294597,86.479,86.415,20.50000649]
[1773329507234,20.56294597,86.469,86.403,40.06]
[1773329507432,20.56294597,86.469,86.399,20.50000649]
[1773329507638,10.41,86.451,86.399,20.50000649]
[1773329507827,20.56294597,86.459,86.399,20.50000649]
[1773329508833,10.409,86.455,86.399,20.50000649]
[1773329509037,20.56294597,86.478,86.399,20.50000649]
[1773329509431,20.56294597,86.478,86.394,40.06]
[1773329509432,20.56294597,86.478,86.419,20.50000649]
[1773329509732,20.56294597,86.496,86.419,20.50000649]
[1773329509931,20.56294597,86.496,86.421,20.50000649]
[1773329510141,20.56294597,86.496,86.445,30.91000649]
[1773329510532,19.58104854,86.494,86.429,29.85329147]
[1773329510733,19.58104854,86.494,86.43,19.44129147]
[1773329511441,19.58104854,86.494,86.436,19.44129147]
[1773329512337,9.1664329,86.48,86.418,40.06]
[1773329512537,19.58104854,86.479,86.418,40.06]
[1773329513139,10.407,86.474,86.419,10.413]
[1773329513438,19.58104854,86.474,86.416,19.44129147]
[1773329514637,19.58104854,86.474,86.424,10.413]
[1773329514841,19.58104854,86.474,86.416,19.44129147]
[1773329515235,10.407,86.471,86.416,19.44129147]
[1773329516044,19.58104854,86.474,86.419,29.85429147]
[1773329516445,19.58104854,86.474,86.426,10.412]
[1773329517649,10.407,86.47,86.419,19.44129147]
[1773329518642,19.58104854,86.474,86.419,19.44129147]
[1773329519944,10.407,86.473,86.421,10.413]
[1773329520345,19.58104854,86.474,86.419,19.44129147]
[1773329521151,19.58104854,86.469,86.381,19.44129147]
[1773329521450,19.58104854,86.469,86.383,19.44129147]
[1773329521844,19.58104854,86.458,86.404,29.85629147]
[1773329522352,19.58104854,86.458,86.404,19.44129147]
[1773329523954,19.58104854,86.444,86.381,19.44129147]
[1773329524545,40.06,86.473,86.397,19.44129147]
[1773329524751,19.58104854,86.475,86.397,19.44129147]
[1773329525358,10.407,86.47,86.417,10.414]
[1773329525859,40.06,86.492,86.431,19.44129147]
[1773329526055,40.06,86.492,86.43,9.1664329]
[1773329526056,19.58104854,86.523,86.453,19.44129147]
[1773329527362,19.58104854,86.523,86.469,19.44129147]
[1773329528253,19.58104854,86.523,86.452,19.44129147]
[1773329528954,19.58104854,86.502,86.439,10.411]
[1773329529357,19.58104854,86.502,86.435,19.44129147]
[1773329529556,19.58104854,86.499,86.435,19.44129147]
[1773329529760,19.58104854,86.499,86.42,19.44129147]
[1773329530160,19.58104854,86.481,86.42,19.44129147]
[1773329530763,19.58104854,86.481,86.43,19.44129147]
[1773329532262,9.1664329,86.49,86.43,19.44129147]
[1773329532470,19.58104854,86.498,86.43,19.44129147]
[1773329533064,9.1664329,86.51,86.448,19.44129147]
[1773329533364,19.58104854,86.516,86.448,19.44129147]
[1773329533868,29.98304854,86.516,86.456,10.409]
[1773329534065,19.58104854,86.515,86.448,19.44129147]
[1773329535967,19.58104854,86.515,86.43,9.1664329]
[1773329535968,10.402,86.511,86.45,29.85129147]
[1773329536160,19.58104854,86.511,86.45,19.44129147]
[1773329536757,19.58104854,86.509,86.442,10.411]
[1773329536962,9.1664329,86.49,86.435,19.44129147]
[1773329537168,28.74748144,86.49,86.435,19.44129147]
[1773329537567,10.405,86.488,86.435,19.44129147]
[1773329537960,19.58104854,86.49,86.435,19.44129147]
[1773329538164,19.58104854,86.49,86.444,10.41]
[1773329538972,19.58104854,86.49,86.435,19.44129147]
[1773329539774,10.405,86.489,86.435,29.85229147]
[1773329540165,19.58104854,86.488,86.435,29.85229147]
[1773329541071,10.405,86.486,86.435,29.85229147]
[1773329541972,19.61566439,86.513,86.442,21.01928827]
[1773329543367,19.61566439,86.491,86.426,10.413]
[1773329543573,19.61566439,86.491,86.423,21.01928827]
[1773329543870,9.1664329,86.5,86.423,21.01928827]
[1773329544070,10.404,86.499,86.451,10.409]
[1773329544271,19.61566439,86.508,86.451,10.409]
[1773329544272,19.61566439,86.508,86.451,21.01928827]
[1773329544773,19.61566439,86.508,86.451,31.42828827]
[1773329545374,10.404,86.501,86.454,31.42828827]
[1773329545575,19.61566439,86.508,86.454,21.01928827]
[1773329545777,9.1664329,86.5,86.425,21.01928827]
[1773329545972,19.61566439,86.499,86.425,21.01928827]
[1773329546475,10.406,86.476,86.426,21.01928827]
[1773329546977,10.405,86.491,86.441,10.411]
[1773329548475,19.61566439,86.499,86.426,21.01928827]
[1773329548974,19.61566439,86.474,86.426,21.01928827]
[1773329549881,9.1664329,86.5,86.428,21.01928827]
[1773329549882,10.406,86.48,86.428,21.01928827]
[1773329550080,9.1664329,86.5,86.428,21.01928827]
[1773329550380,9.1664329,86.5,86.416,40.06]
[1773329550381,10.405,86.49,86.441,21.01928827]
[1773329550676,19.61566439,86.49,86.417,21.01928827]
[1773329551678,19.61566439,86.49,86.432,21.01928827]
[1773329551977,18.50806027,86.5,86.432,21.01928827]
[1773329551978,9.1664329,86.5,86.432,21.01928827]
[1773329552886,19.61566439,86.499,86.432,21.01928827]
[1773329553785,19.61566439,86.499,86.438,21.01928827]
[1773329555781,10.406,86.481,86.438,21.01928827]
[1773329556381,10.407,86.475,86.42,21.01928827]
[1773329556575,19.61566439,86.475,86.42,21.01928827]
[1773329557180,19.61566439,86.475,86.366,28.04430382]
[1773329557181,19.61566439,86.462,86.353,28.04430382]
[1773329557383,19.61566439,86.429,86.345,21.01928827]
[1773329557585,19.61566439,86.429,86.308,40.06]
[1773329557586,19.61566439,86.409,86.311,21.01928827]
[1773329557786,19.61566439,86.409,86.308,40.06]
[1773329557787,19.61566439,86.409,86.349,21.01928827]
[1773329558682,19.61566439,86.409,86.359,10.42]
[1773329559987,19.61566439,86.406,86.331,21.01928827]
[1773329560193,19.61566439,86.399,86.331,21.01928827]
[1773329560687,19.61566439,86.393,86.331,21.01928827]
[1773329561185,9.18668727,86.38,86.331,21.01928827]
[1773329562684,9.18668727,86.36,86.312,21.01928827]
[1773329562890,19.61566439,86.378,86.312,21.01928827]
[1773329563188,19.61566439,86.378,86.313,21.01928827]
[1773329564391,21.15846326,86.375,86.313,21.01928827]
[1773329564698,9.18668727,86.36,86.294,59.56826266]
[1773329564990,21.15846326,86.357,86.294,19.48826266]
[1773329565191,9.18668727,86.35,86.294,19.48826266]
[1773329565783,9.18668727,86.35,86.296,10.428]
[1773329566195,21.15846326,86.349,86.294,19.48826266]
[1773329566400,10.424,86.328,86.263,19.48826266]
[1773329566589,21.15846326,86.328,86.263,19.48826266]
[1773329566788,21.15846326,86.348,86.263,19.48826266]
[1773329566989,21.15846326,86.348,86.283,19.48826266]
[1773329567195,40.08,86.355,86.283,19.48826266]
[1773329567792,21.15846326,86.367,86.283,19.48826266]
[1773329568895,9.18668727,86.35,86.283,19.48826266]
[1773329569091,21.15846326,86.349,86.283,19.48826266]
[1773329569997,21.15846326,86.348,86.283,19.48826266]
[1773329570590,21.15846326,86.348,86.287,19.86128548]
[1773329570997,9.18668727,86.34,86.265,19.86128548]
[1773329571597,21.39542033,86.339,86.275,10.431]
[1773329572296,21.39542033,86.335,86.275,10.431]
[1773329572498,21.39542033,86.319,86.231,19.86128548]
[1773329572700,21.39542033,86.336,86.231,19.86128548]
[1773329572898,21.39542033,86.336,86.251,19.86128548]
[1773329573903,21.39542033,86.357,86.293,19.86128548]
[1773329574902,161.969,86.432,86.293,19.86128548]
[1773329574903,21.39542033,86.375,86.293,19.86128548]
[1773329575805,9.18668727,86.38,86.325,30.28628548]
[1773329576404,30.5821076,86.38,86.325,30.28628548]
[1773329576801,10.418,86.377,86.325,19.86128548]
[1773329577001,21.39542033,86.376,86.325,19.86128548]
[1773329579905,21.39542033,86.374,86.313,10.426]
[1773329580105,21.39542033,86.374,86.314,19.86128548]
[1773329580299,21.39542033,86.359,86.288,19.86128548]
[1773329580606,21.39542033,86.349,86.288,19.86128548]
[1773329580801,9.18668727,86.34,86.258,19.86128548]
[1773329580996,9.18668727,86.34,86.257,40.12]
[1773329580997,21.39542033,86.339,86.28,19.86128548]
[1773329581201,21.39542033,86.358,86.28,19.86128548]
[1773329581409,21.39542033,86.348,86.286,10.429]
[1773329581603,9.18668727,86.34,86.28,19.86128548]
[1773329581803,21.39542033,86.339,86.28,19.86128548]
[1773329582003,21.39542033,86.339,86.283,19.86128548]
[1773329582805,9.18668727,86.34,86.298,10.428]
[1773329583011,9.18668727,86.34,86.283,19.86128548]
[1773329583012,21.39542033,86.356,86.283,19.86128548]
[1773329584209,21.39542033,86.349,86.283,19.86128548]
[1773329584810,10.422,86.348,86.293,10.429]
[1773329585011,21.39542033,86.349,86.283,19.86128548]
[1773329585406,10.424,86.333,86.283,19.86128548]
[1773329585709,31.81942033,86.333,86.283,19.86128548]
[1773329585909,21.39542033,86.329,86.252,19.86128548]
[1773329586304,21.39542033,86.327,86.266,10.432]
[1773329587313,9.18668727,86.31,86.252,19.86128548]
[1773329587512,9.18668727,86.31,86.201,20.88]
[1773329587513,21.39542033,86.309,86.236,19.86128548]
[1773329587912,21.39542033,86.309,86.215,40.12]
[1773329587913,21.39542033,86.309,86.248,19.86128548]
[1773329588413,9.18668727,86.31,86.254,19.86128548]
[1773329588613,10.426,86.315,86.254,19.86128548]
[1773329589014,10.426,86.315,86.256,10.433]
[1773329589210,21.39542033,86.314,86.256,10.433]
[1773329589415,21.39542033,86.31,86.254,19.86128548]
[1773329589614,21.39542033,86.31,86.255,10.433]
[1773329589816,30.5821076,86.31,86.255,10.433]
[1773329590010,21.39542033,86.308,86.231,19.86128548]
[1773329590217,21.39542033,86.289,86.231,19.86128548]
[1773329590418,9.18668727,86.29,86.231,19.86128548]
[1773329590618,21.39542033,86.307,86.231,19.86128548]
[1773329590819,21.39542033,86.307,86.248,19.86128548]
[1773329591317,21.39542033,86.299,86.248,19.86128548]
[1773329591514,21.39542033,86.299,86.23,19.86128548]
[1773329592320,21.39542033,86.316,86.262,19.86128548]
[1773329593220,21.39542033,86.335,86.264,19.86128548]
[1773329593822,9.18668727,86.35,86.285,19.86128548]
[1773329595116,30.5821076,86.35,86.285,19.86128548]
[1773329595922,21.39542033,86.349,86.285,19.86128548]
[1773329596622,21.39542033,86.349,86.257,40.14]
[1773329596623,21.39542033,86.329,86.258,19.86128548]
[1773329597018,21.39542033,86.329,86.267,10.432]
[1773329597218,21.39542033,86.329,86.258,19.86128548]
[1773329598526,10.424,86.327,86.276,10.431]
[1773329599028,21.39542033,86.329,86.274,10.431]
[1773329599322,21.39542033,86.329,86.258,19.86128548]
[1773329599823,21.39542033,86.329,86.273,10.431]
[1773329600323,10.424,86.328,86.273,10.431]
[1773329600525,31.55980551,86.328,86.273,10.431]
[1773329600724,21.13580551,86.327,86.265,10.432]
[1773329600924,21.13580551,86.312,86.258,19.86128548]
[1773329601125,21.13580551,86.312,86.176,162.448]
[1773329601126,21.13580551,86.289,86.231,20.91470966]
[1773329601726,21.13580551,86.289,86.214,20.91470966]
[1773329601920,21.13580551,86.288,86.214,20.91470966]
[1773329602826,21.13580551,86.288,86.241,10.435]
[1773329603228,30.82494476,86.305,86.231,20.91470966]
[1773329603423,21.50257989,86.345,86.199,20.88]
[1773329603424,21.13580551,86.316,86.254,20.91470966]
[1773329603825,21.13580551,86.296,86.229,20.91470966]
[1773329604519,21.13580551,86.296,86.246,10.434]
[1773329605028,9.18668727,86.3,86.247,20.91470966]
[1773329605526,9.69765844,86.312,86.247,20.91470966]
[1773329605724,21.13580551,86.313,86.247,20.91470966]
[1773329605918,21.13580551,86.311,86.247,20.91470966]
[1773329606122,21.13580551,86.309,86.247,20.91470966]
[1773329606529,31.56280551,86.308,86.247,20.91470966]
[1773329606925,9.69765844,86.307,86.247,20.91470966]
[1773329607227,21.13580551,86.305,86.247,20.91470966]
[1773329607419,21.13580551,86.289,86.22,20.91470966]
[1773329607618,19.61768727,86.27,86.221,10.437]
[1773329607817,9.18668727,86.27,86.22,20.91470966]
[1773329608926,9.18668727,86.27,86.228,10.436]
[1773329609325,9.18668727,86.27,86.182,40.14]
[1773329609326,21.13580551,86.269,86.201,20.91470966]
[1773329609729,21.13580551,86.267,86.201,20.91470966]
[1773329610123,21.13580551,86.267,86.169,40.14]
[1773329610124,21.13580551,86.267,86.179,20.91470966]
[1773329610629,9.69765844,86.268,86.202,20.91470966]
[1773329610630,21.13580551,86.266,86.202,20.91470966]
[1773329611726,9.18668727,86.27,86.202,20.91470966]
[1773329612929,9.18668727,86.27,86.223,10.437]
[1773329613324,21.13580551,86.269,86.202,20.91470966]
[1773329614736,10.433,86.26,86.211,10.438]
[1773329615132,21.13580551,86.259,86.211,10.438]
[1773329615529,21.13580551,86.254,86.204,10.439]
[1773329615731,21.13580551,86.249,86.187,20.91470966]
[1773329616331,9.18668727,86.27,86.17,20.91470966]
[1773329616332,21.13580551,86.239,86.17,20.91470966]
[1773329616526,21.13580551,86.219,86.15,20.91470966]
[1773329616731,21.13580551,86.23,86.162,20.91470966]
[1773329617030,21.13580551,86.229,86.162,20.91470966]
[1773329617232,21.13580551,86.229,86.167,20.91470966]
[1773329617431,21.13580551,86.249,86.167,20.91470966]
[1773329618325,21.13580551,86.248,86.174,20.91470966]
[1773329619234,10.435,86.241,86.174,20.91470966]
[1773329619529,9.18668727,86.25,86.174,20.91470966]
[1773329619737,40.16,86.255,86.174,20.91470966]
[1773329619932,21.13580551,86.254,86.174,20.91470966]
[1773329620132,21.13580551,86.253,86.185,20.91470966]
[1773329620338,21.13580551,86.271,86.185,20.91470966]
[1773329620533,21.13580551,86.271,86.18,9.2212665]
[1773329620534,21.13580551,86.271,86.22,10.437]
[1773329621132,21.13580551,86.271,86.21,10.439]
[1773329621333,9.2212665,86.28,86.211,20.91470966]
[1773329621826,21.13580551,86.288,86.226,20.91470966]
[1773329622036,40.16,86.301,86.226,20.91470966]
[1773329622230,21.13580551,86.306,86.226,20.91470966]
[1773329622429,21.13580551,86.306,86.251,20.91470966]
[1773329623034,21.13580551,86.306,86.252,10.434]
[1773329623234,21.13580551,86.306,86.233,20.91470966]